bitfinex/quotes_BTCUSD_20240719
["timestamp","ask_amount","ask_price","bid_price","bid_amount"]
[1721396518171,0.99927846,64967.0,64966.0,0.002]
[1721396518384,0.69143046,64967.0,64966.0,0.002]
[1721396518593,0.99927846,64967.0,64966.0,0.002]
[1721396518806,0.69143046,64967.0,64966.0,0.002]
[1721396519018,1.09593151,64967.0,64966.0,0.002]
[1721396519670,1.09593151,64967.0,64958.0,0.07717479]
[1721396519671,0.06727672,64967.0,64958.0,0.07717479]
[1721396519874,0.06727672,64967.0,64959.0,0.07717479]
[1721396519875,0.06506672,64966.0,64959.0,0.07717479]
[1721396520308,0.01421,64967.0,64959.0,0.07717479]
[1721396520523,0.01421,64967.0,64952.0,0.153957]
[1721396520524,0.20864511,64966.0,64946.0,0.01822015]
[1721396520739,0.06513188,64965.0,64955.0,0.07717479]
[1721396520956,0.06513188,64966.0,64955.0,0.07717479]
[1721396521163,0.06513188,64964.0,64962.0,0.07717479]
[1721396521386,0.02621,64967.0,64962.0,0.07717479]
[1721396521593,0.02621,64967.0,64955.0,0.38507879]
[1721396521594,0.01421,64967.0,64955.0,0.07717479]
[1721396521798,0.01421,64967.0,64956.0,0.12785081]
[1721396521799,0.153931,64964.0,64956.0,0.12785081]
[1721396522013,0.153928,64966.0,64951.0,0.15396]
[1721396522240,0.153928,64966.0,64952.0,0.12786211]
[1721396522241,0.153931,64964.0,64952.0,0.12786211]
[1721396522449,0.06513538,64963.0,64950.0,0.153964]
[1721396522689,0.06513538,64963.0,64955.0,0.07717479]
[1721396522892,0.06513538,64963.0,64948.0,0.38511179]
[1721396522893,0.153938,64961.0,64948.0,0.07717479]
[1721396523113,0.1477,64962.0,64941.0,0.09540708]
[1721396523114,0.153946,64958.0,64949.0,0.12785895]
[1721396523391,0.30208174,64962.0,64941.0,0.07717479]
[1721396523392,0.153966,64950.0,64941.0,0.07717479]
[1721396523605,0.2735,64955.0,64942.0,0.12788286]
[1721396523812,0.153967,64949.0,64941.0,0.07717479]
[1721396524048,0.2195692,64948.0,64936.0,0.0615]
[1721396524270,0.153976,64945.0,64937.0,0.12789339]
[1721396524480,0.153976,64945.0,64936.0,0.0615]
[1721396524715,0.06527538,64944.0,64931.0,0.154008]
[1721396525141,0.06527538,64944.0,64941.0,0.001]
[1721396525563,0.06527538,64944.0,64942.0,0.07717479]
[1721396525816,0.153983,64942.0,64941.0,0.001]
[1721396526073,0.52722538,64942.0,64941.0,0.001]
[1721396526319,0.52722538,64942.0,64934.0,0.000913]
[1721396526320,0.153986,64941.0,64934.0,0.000913]
[1721396526572,0.15399,64940.0,64934.0,0.000913]
[1721396526791,0.153994,64938.0,64934.0,0.000913]
[1721396527011,0.46234474,64943.0,64934.0,0.000913]
[1721396527012,0.154,64935.0,64934.0,0.000913]
[1721396527261,1.26321292,64935.0,64934.0,0.000913]
[1721396527471,1.26321292,64935.0,64934.0,0.00086431]
[1721396527681,0.21971292,64935.0,64934.0,0.00086431]
[1721396527891,0.37371292,64935.0,64934.0,0.00086431]
[1721396528105,0.68171292,64935.0,64934.0,0.00086431]
[1721396528529,1.57121292,64935.0,64934.0,0.00086431]
[1721396528746,1.58021292,64935.0,64934.0,0.00086431]
[1721396528967,1.27860965,64935.0,64934.0,0.00086431]
[1721396529190,0.22871292,64935.0,64934.0,0.00086431]
[1721396529410,0.99871292,64935.0,64934.0,0.00086431]
[1721396529626,2.86868311,64935.0,64934.0,0.00086431]
[1721396529847,3.02102793,64935.0,64934.0,0.00086431]
[1721396530060,3.66568311,64935.0,64934.0,0.00086431]
[1721396530275,0.770152,64922.0,64921.0,0.000913]
[1721396530495,0.98986492,64922.0,64921.0,0.000913]
[1721396530718,1.80677549,64922.0,64921.0,0.000913]
[1721396531007,1.70147373,64922.0,64921.0,0.000913]
[1721396531223,0.92460392,64922.0,64921.0,0.000913]
[1721396531672,0.06533118,64922.0,64921.0,0.000913]
[1721396531895,0.15438174,64922.0,64921.0,0.000913]
[1721396532116,0.30841174,64922.0,64921.0,0.000913]
[1721396532336,0.61647274,64922.0,64921.0,0.000913]
[1721396532556,0.30841174,64922.0,64921.0,0.000913]
[1721396532766,0.61647274,64922.0,64921.0,0.000913]
[1721396533015,0.92453374,64922.0,64921.0,0.000913]
[1721396533237,1.54023768,64922.0,64921.0,0.000913]
[1721396533482,2.63929868,64922.0,64921.0,0.000913]
[1721396533678,2.64569746,64922.0,64921.0,0.000913]
[1721396533900,2.33763646,64922.0,64921.0,0.000913]
[1721396534112,2.52009041,64922.0,64921.0,0.000913]
[1721396534343,2.21202941,64922.0,64921.0,0.000913]
[1721396534781,2.21802941,64922.0,64921.0,0.000913]
[1721396534990,2.21784415,64922.0,64921.0,0.000913]
[1721396535205,2.68025472,64922.0,64921.0,0.000913]
[1721396535414,2.61485905,64922.0,64921.0,0.000913]
[1721396535655,2.68026627,64922.0,64921.0,0.000913]
[1721396535860,2.70326627,64922.0,64921.0,0.000913]
[1721396536097,3.01132727,64922.0,64921.0,0.000913]
[1721396536311,2.5489167,64922.0,64921.0,0.000913]
[1721396536517,2.8569777,64922.0,64921.0,0.000913]
[1721396536725,2.5489167,64922.0,64921.0,0.000913]
[1721396537143,2.8569777,64922.0,64921.0,0.000913]
[1721396537831,2.86337727,64922.0,64921.0,0.000913]
[1721396538036,0.308151,64904.0,64888.0,0.089663]
[1721396538265,0.154084,64900.0,64888.0,0.089663]
[1721396538468,0.154084,64900.0,64895.0,0.01039182]
[1721396538734,0.15408,64902.0,64888.0,0.089663]
[1721396538943,0.46227,64897.0,64896.0,0.07717479]
[1721396539157,0.46227,64897.0,64877.0,0.308274]
[1721396539158,0.07717479,64894.0,64877.0,0.308274]
[1721396539375,0.07717479,64894.0,64857.0,0.35067479]
[1721396539376,0.154102,64892.0,64857.0,0.35067479]
[1721396539606,0.154107,64890.0,64875.0,0.154142]
[1721396539820,0.002794,64889.0,64875.0,0.154142]
[1721396540455,0.002794,64889.0,64853.0,0.01114272]
[1721396540456,0.2735,64877.0,64853.0,0.01114272]
[1721396540677,0.2735,64877.0,64857.0,0.46304871]
[1721396540678,0.002794,64876.0,64857.0,0.46304871]
[1721396540899,0.002794,64876.0,64866.0,0.308326]
[1721396541111,0.002794,64876.0,64858.0,0.15438174]
[1721396541112,0.154117,64886.0,64858.0,0.15438174]
[1721396541316,0.154117,64886.0,64866.0,0.308324]
[1721396541317,0.15717574,64885.0,64866.0,0.308324]
[1721396541525,0.07717479,64882.0,64858.0,0.15438174]
[1721396541755,0.07717479,64882.0,64864.0,0.154166]
[1721396541756,0.154133,64879.0,64864.0,0.154166]
[1721396541973,0.154141,64876.0,64862.0,0.154172]
[1721396542213,0.46544674,64878.0,64857.0,0.308369]
[1721396542214,0.23155653,64875.0,64858.0,0.066]
[1721396542417,0.002794,64874.0,64859.0,0.30836]
[1721396542624,0.002794,64879.0,64873.0,0.154147]
[1721396542830,0.0764,64888.0,64859.0,0.46582333]
[1721396542831,0.07717479,64878.0,64870.0,0.154154]
[1721396543042,0.002794,64877.0,64859.0,0.15438174]
[1721396543485,0.002794,64877.0,64865.0,0.308332]
[1721396543790,0.002794,64877.0,64863.0,0.308337]
[1721396543999,0.07717479,64871.0,64860.0,0.308352]
[1721396544241,0.002794,64870.0,64862.0,0.154173]
[1721396544908,0.002794,64870.0,64858.0,0.066]
[1721396545140,0.15438174,64876.0,64864.0,0.154166]
[1721396545141,0.002794,64875.0,64864.0,0.154166]
[1721396545383,0.07717479,64870.0,64864.0,0.154166]
[1721396545621,0.002794,64869.0,64864.0,0.154166]
[1721396545855,0.002794,64869.0,64864.0,0.154168]
[1721396546391,0.002794,64869.0,64859.0,0.308357]
[1721396546600,0.002794,64869.0,64861.0,0.308351]
[1721396546807,0.002794,64869.0,64859.0,0.308357]
[1721396546808,0.002794,64869.0,64858.0,0.066]
[1721396547020,0.002794,64869.0,64861.0,0.154174]
[1721396547228,0.002794,64869.0,64860.0,0.154177]
[1721396547447,0.002794,64869.0,64858.0,0.066]
[1721396547653,0.002794,64869.0,64861.0,0.154175]
[1721396548282,0.002794,64869.0,64859.0,0.309271]
[1721396548283,0.002794,64869.0,64865.0,0.154164]
[1721396548534,0.002794,64869.0,64862.0,0.462517]
[1721396548823,0.002794,64869.0,64863.0,0.308342]
[1721396549060,0.002794,64869.0,64863.0,0.15417]
[1721396549301,0.15438174,64874.0,64859.0,0.000913]
[1721396549536,0.07717479,64871.0,64862.0,0.154172]
[1721396549751,0.07717479,64871.0,64862.0,0.308346]
[1721396549977,0.07785053,64875.0,64859.0,0.000913]
[1721396550238,0.07785053,64875.0,64864.0,0.308332]
[1721396550472,0.07785053,64875.0,64862.0,0.308344]
[1721396550714,0.002,64874.0,64865.0,0.154164]
[1721396550954,0.002,64874.0,64864.0,0.308336]
[1721396550955,0.002,64874.0,64866.0,0.308327]
[1721396551186,0.07785053,64875.0,64865.0,0.154165]
[1721396551432,0.2735,64882.0,64859.0,0.15529474]
[1721396551684,0.061745,64882.0,64875.0,0.154141]
[1721396551926,1.1278335,64889.0,64878.0,0.154134]
[1721396551927,0.9737235,64889.0,64878.0,0.154134]
[1721396552169,0.9737235,64889.0,64861.0,0.308347]
[1721396552170,0.30849574,64887.0,64873.0,0.154146]
[1721396552427,0.07717479,64875.0,64860.0,0.15438174]
[1721396552713,0.07717479,64882.0,64861.0,0.13081738]
[1721396552957,0.154132,64880.0,64865.0,0.308331]
[1721396553219,0.154132,64880.0,64859.0,0.000913]
[1721396553220,0.15438174,64880.0,64864.0,0.308334]
[1721396553462,0.38543079,64882.0,64866.0,0.154162]
[1721396553463,0.07717479,64875.0,64866.0,0.154162]
[1721396553711,0.07717479,64875.0,64859.0,0.000913]
[1721396553917,0.07717479,64875.0,64864.0,0.154167]
[1721396554127,0.15438174,64874.0,64859.0,0.000913]
[1721396554339,0.15438174,64874.0,64861.0,0.154175]
[1721396554340,0.30852674,64874.0,64861.0,0.154175]
[1721396554550,0.15438174,64874.0,64863.0,0.15417]
[1721396554759,0.003,64875.0,64859.0,0.000913]
[1721396554998,0.003,64875.0,64871.0,0.154151]
[1721396555208,0.003,64875.0,64869.0,0.30831]
[1721396555209,0.07717479,64874.0,64869.0,0.30831]
[1721396555417,0.07717479,64874.0,64866.0,0.154163]
[1721396555630,0.23155653,64874.0,64860.0,0.308354]
[1721396555839,0.23155653,64874.0,64861.0,0.154174]
[1721396555840,0.40778901,64874.0,64861.0,0.154174]
[1721396556054,0.25364401,64874.0,64861.0,0.154174]
[1721396556726,0.23155653,64874.0,64860.0,0.308354]
[1721396556941,0.07717479,64874.0,64864.0,0.308336]
[1721396557151,0.07717479,64874.0,64868.0,0.154158]
[1721396557364,0.07717479,64874.0,64860.0,0.308354]
[1721396557573,0.07717479,64874.0,64863.0,0.154169]
[1721396557821,0.07717479,64874.0,64864.0,0.154168]
[1721396558027,0.07717479,64874.0,64859.0,0.000913]
[1721396558028,0.15713947,64874.0,64859.0,0.000913]
[1721396558237,0.23155653,64874.0,64859.0,0.000913]
[1721396558450,0.23155653,64874.0,64861.0,0.30835]
[1721396558656,0.23155653,64874.0,64862.0,0.308344]
[1721396558657,0.07717479,64874.0,64862.0,0.308344]
[1721396558862,0.07817479,64874.0,64863.0,0.154169]
[1721396559095,0.07817479,64874.0,64864.0,0.154168]
[1721396559301,0.07817479,64874.0,64867.0,0.15416]
[1721396559527,0.07817479,64874.0,64868.0,0.154157]
[1721396559728,0.001,64874.0,64863.0,0.308339]
[1721396559945,0.1407,64879.0,64864.0,0.12803282]
[1721396560190,0.29508174,64879.0,64867.0,0.154161]
[1721396560433,0.001,64874.0,64865.0,0.154165]
[1721396560663,0.001,64874.0,64863.0,0.308339]
[1721396560896,0.001,64874.0,64859.0,0.15529474]
[1721396560897,0.001,64874.0,64861.0,0.308348]
[1721396561899,0.07717479,64868.0,64859.0,0.000913]
[1721396562372,0.07717479,64868.0,64862.0,0.154171]
[1721396562620,0.07717479,64868.0,64859.0,0.309271]
[1721396562785,0.07717479,64875.0,64867.0,0.15416]
[1721396563250,0.07717479,64875.0,64865.0,0.154166]
[1721396563990,0.07717479,64867.0,64860.0,0.308352]
[1721396564102,0.07717479,64867.0,64862.0,0.154172]
[1721396564365,0.07717479,64867.0,64863.0,0.15417]
[1721396564596,0.07717479,64867.0,64861.0,0.154174]
[1721396564811,0.07717479,64867.0,64860.0,0.308352]
[1721396565023,0.15438174,64874.0,64860.0,0.308352]
[1721396565243,0.15438174,64874.0,64864.0,0.154168]
[1721396565469,0.15538174,64874.0,64863.0,0.15417]
[1721396565682,0.001,64874.0,64867.0,0.15416]
[1721396565888,0.001,64874.0,64864.0,0.308333]
[1721396566104,0.001,64874.0,64859.0,0.000913]
[1721396566322,0.001,64874.0,64860.0,0.15438174]
[1721396566542,0.001,64874.0,64870.0,0.308308]
[1721396566759,0.001,64874.0,64872.0,0.154148]
[1721396567197,0.001,64874.0,64870.0,0.154154]
[1721396567420,0.001,64874.0,64869.0,0.308311]
[1721396567619,0.001,64874.0,64867.0,0.308319]
[1721396567849,0.07717479,64873.0,64863.0,0.308341]
[1721396568056,0.07717479,64873.0,64838.0,0.002794]
[1721396568057,0.07717479,64873.0,64860.0,0.308354]
[1721396568275,0.07717479,64873.0,64863.0,0.154169]
[1721396568482,0.07717479,64873.0,64860.0,0.308354]
[1721396568483,0.07717479,64873.0,64862.0,0.154172]
[1721396568679,0.001,64867.0,64862.0,0.154172]
[1721396569477,0.001,64867.0,64853.0,0.308387]
[1721396569478,0.001,64867.0,64866.0,0.154163]
[1721396569669,0.46304871,64884.0,64872.0,0.154148]
[1721396569819,0.46304871,64884.0,64862.0,0.15438174]
[1721396570020,0.07717479,64875.0,64848.0,0.308409]
[1721396570221,0.07717479,64875.0,64860.0,0.15438174]
[1721396570422,0.07717479,64875.0,64865.0,0.154165]
[1721396570590,0.07717479,64875.0,64865.0,0.154164]
[1721396570795,0.35067479,64875.0,64865.0,0.308332]
[1721396570991,0.35067479,64875.0,64866.0,0.154163]
[1721396571452,0.001,64873.0,64866.0,0.154163]
[1721396571681,0.35067479,64875.0,64868.0,0.154158]
[1721396571872,0.1407,64879.0,64854.0,0.308384]
[1721396572069,0.001,64875.0,64870.0,0.308308]
[1721396572276,0.001,64875.0,64874.0,0.154144]
[1721396572480,0.001,64875.0,64874.0,0.92510374]
[1721396572685,0.061739,64889.0,64888.0,0.462334]
[1721396573111,0.061739,64889.0,64888.0,0.770557]
[1721396573310,0.12717479,64904.0,64891.0,0.308205]
[1721396573513,0.93639979,64904.0,64899.0,0.154084]
[1721396573720,0.93639979,64904.0,64894.0,0.308192]
[1721396573721,0.05,64903.0,64894.0,0.308192]
[1721396573927,0.05,64903.0,64887.0,0.063]
[1721396573928,0.07717479,64897.0,64887.0,0.063]
[1721396574131,0.07717479,64890.0,64881.0,0.0651]
[1721396574337,0.07717479,64897.0,64887.0,0.308224]
[1721396574537,0.07717479,64897.0,64895.0,0.154094]
[1721396574681,0.07717479,64897.0,64896.0,0.462277]
[1721396574877,0.07717479,64897.0,64893.0,0.154098]
[1721396575171,0.07717479,64897.0,64892.0,0.308203]
[1721396575378,0.87467479,64904.0,64899.0,0.154084]
[1721396575582,0.05,64899.0,64889.0,0.308216]
[1721396575790,0.15438174,64903.0,64886.0,0.308232]
[1721396575791,0.07717479,64894.0,64886.0,0.308232]
[1721396576000,0.21610774,64903.0,64883.0,0.154122]
[1721396576001,0.07717479,64890.0,64883.0,0.154122]
[1721396576211,0.07717479,64897.0,64880.0,0.30826]
[1721396576212,0.05,64893.0,64880.0,0.30826]
[1721396576415,0.07717479,64897.0,64881.0,0.15438174]
[1721396576624,0.07717479,64897.0,64880.0,0.30826]
[1721396576625,0.05,64895.0,64888.0,0.15411]
[1721396576832,0.05,64895.0,64889.0,0.154108]
[1721396577041,0.05,64895.0,64875.0,0.0605]
[1721396577042,0.061726,64903.0,64876.0,0.04530605]
[1721396577250,0.82467479,64904.0,64880.0,0.04530605]
[1721396577456,0.82467479,64904.0,64899.0,0.154085]
[1721396577859,0.82467479,64904.0,64894.0,0.308191]
[1721396578064,0.82467479,64904.0,64898.0,0.154087]
[1721396578273,0.82467479,64904.0,64896.0,0.154092]
[1721396578483,0.07717479,64912.0,64903.0,0.154076]
[1721396578484,0.061722,64907.0,64903.0,0.154076]
[1721396578691,0.0765,64917.0,64897.0,0.15746321]
[1721396578911,0.0765,64917.0,64910.0,0.308117]
[1721396578912,0.09085477,64917.0,64910.0,0.308117]
[1721396579121,0.09085477,64917.0,64912.0,0.154053]
[1721396579330,0.13888279,64921.0,64904.0,0.308145]
[1721396579331,0.05,64920.0,64911.0,0.308113]
[1721396579554,0.05,64920.0,64913.0,0.154051]
[1721396579770,0.05,64920.0,64911.0,0.462168]
[1721396579980,0.05,64920.0,64913.0,0.154051]
[1721396580185,0.09145282,64921.0,64914.0,0.308099]
[1721396580186,0.03474888,64919.0,64914.0,0.308099]
[1721396580399,0.07800479,64922.0,64909.0,0.30812]
[1721396580609,0.07717479,64915.0,64903.0,0.15438174]
[1721396580845,0.05,64920.0,64903.0,0.15438174]
[1721396581056,0.05,64920.0,64908.0,0.308124]
[1721396581057,0.07717479,64915.0,64908.0,0.308124]
[1721396581272,0.07717479,64915.0,64911.0,0.154057]
[1721396581493,0.07717479,64915.0,64902.0,0.308154]
[1721396581494,0.001,64904.0,64899.0,0.005]
[1721396581697,0.58942379,64900.0,64899.0,0.005]
[1721396581905,0.58942379,64900.0,64889.0,0.154108]
[1721396581906,0.05,64897.0,64889.0,0.154108]
[1721396582143,0.05,64897.0,64885.0,0.308234]
[1721396582144,0.05,64897.0,64887.0,0.154112]
[1721396582349,0.05,64897.0,64886.0,0.154115]
[1721396582558,0.05,64891.0,64872.0,0.0648]
[1721396582766,0.07717479,64893.0,64874.0,0.46304871]
[1721396582767,0.05,64892.0,64874.0,0.46304871]
[1721396582969,0.14506453,64892.0,64880.0,0.30826]
[1721396583183,0.05,64891.0,64874.0,0.15438174]
[1721396583403,0.35067479,64893.0,64869.0,0.0648]
[1721396583404,0.07717479,64886.0,64869.0,0.0648]
[1721396583612,0.05,64876.0,64860.0,0.000924]
[1721396583827,0.308259,64881.0,64861.0,0.308348]
[1721396583828,0.05,64874.0,64861.0,0.308348]
[1721396584041,0.05,64874.0,64863.0,0.15417]
[1721396584256,0.154137,64878.0,64862.0,0.308345]
[1721396584257,0.05,64875.0,64862.0,0.308345]
[1721396584645,0.05,64875.0,64860.0,0.000924]
[1721396584646,0.05,64875.0,64860.0,0.155101]
[1721396584647,0.05,64872.0,64860.0,0.155101]
[1721396584648,0.05,64872.0,64860.0,0.000924]
[1721396584887,0.05,64871.0,64860.0,0.000924]
[1721396585129,0.0606,64869.0,64860.0,0.000924]
[1721396585369,0.0606,64869.0,64860.0,0.1551]
[1721396585613,0.0606,64869.0,64860.0,0.309275]
[1721396585849,0.0606,64869.0,64860.0,0.155101]
[1721396586320,0.0606,64869.0,64860.0,0.000924]
[1721396586550,0.0616,64869.0,64860.0,0.005924]
[1721396586753,0.0616,64869.0,64860.0,0.160101]
[1721396586969,0.0616,64869.0,64860.0,0.005924]
[1721396587463,0.0616,64869.0,64860.0,0.160101]
[1721396587696,0.0616,64869.0,64860.0,0.005924]
[1721396588145,0.0616,64869.0,64861.0,0.15438174]
[1721396588146,0.001,64869.0,64861.0,0.15438174]
[1721396588356,0.001,64869.0,64861.0,0.154175]
[1721396588592,0.001,64869.0,64860.0,0.160102]
[1721396588808,0.12717479,64868.0,64860.0,0.005924]
[1721396589055,0.05,64865.0,64860.0,0.005924]
[1721396589513,0.05,64865.0,64860.0,0.000924]
[1721396589514,0.0789,64864.0,64860.0,0.000924]
[1721396589951,0.0789,64864.0,64861.0,0.005]
[1721396590389,0.0611,64863.0,64861.0,0.005]
[1721396590596,0.0611,64863.0,64860.0,0.000924]
[1721396590813,0.215272,64863.0,64860.0,0.000924]
[1721396591076,0.0611,64863.0,64860.0,0.001924]
[1721396591300,0.0611,64863.0,64860.0,0.000924]
[1721396591516,0.07717479,64862.0,64860.0,0.000924]
[1721396591953,0.215271,64863.0,64860.0,0.000924]
[1721396592180,0.0611,64863.0,64860.0,0.000924]
[1721396592389,0.215273,64863.0,64860.0,0.000924]
[1721396592596,0.07717479,64862.0,64860.0,0.000924]
[1721396592813,0.786026,64861.0,64860.0,0.000924]
[1721396594546,1.73950974,64861.0,64860.0,0.003924]
[1721396594751,1.43115874,64861.0,64860.0,0.003924]
[1721396594983,0.71445674,64861.0,64860.0,0.003924]
[1721396595192,1.02280774,64861.0,64860.0,0.003924]
[1721396595397,1.40833353,64861.0,64860.0,0.003924]
[1721396596247,1.81668453,64861.0,64860.0,0.003924]
[1721396597106,1.19998253,64861.0,64860.0,0.003924]
[1721396597316,1.51833353,64861.0,64860.0,0.000924]
[1721396597524,1.52833353,64861.0,64860.0,0.000924]
[1721396600560,0.78414472,64861.0,64860.0,0.000924]
[1721396600789,0.56095674,64861.0,64860.0,0.000924]
[1721396601010,0.02,64861.0,64860.0,0.000924]
[1721396602086,0.22438174,64861.0,64860.0,0.000924]
[1721396602305,0.37855674,64861.0,64860.0,0.000924]
[1721396602734,0.17438174,64861.0,64860.0,0.000924]
[1721396602945,0.37855674,64861.0,64860.0,0.000924]
[1721396603360,0.01,64861.0,64860.0,0.000924]
[1721396604037,0.001,64861.0,64860.0,0.006924]
[1721396606021,0.97625874,64861.0,64860.0,0.006924]
[1721396606521,0.66790774,64861.0,64860.0,0.006924]
[1721396607486,0.001,64861.0,64860.0,0.006924]
[1721396607742,0.001,64861.0,64860.0,0.607858]
[1721396607983,0.001,64861.0,64860.0,1.07059574]
[1721396608968,0.001,64861.0,64860.0,1.37895174]
[1721396609697,0.001,64861.0,64860.0,1.07059574]
[1721396609930,0.1,64864.0,64863.0,0.770855]
[1721396610177,0.1,64864.0,64863.0,0.92523674]
[1721396610395,0.1,64864.0,64863.0,1.60482074]
[1721396610811,0.1,64864.0,64863.0,1.73281765]
[1721396611454,0.1,64864.0,64863.0,1.42448095]
[1721396611660,0.1,64864.0,64863.0,0.0629]
[1721396612083,0.1,64864.0,64863.0,0.525413]
[1721396612707,0.1,64864.0,64863.0,0.0629]
[1721396612912,0.1,64864.0,64863.0,0.525413]
[1721396613114,0.1,64864.0,64863.0,0.833755]
[1721396613526,0.1,64864.0,64863.0,0.217071]
[1721396613731,0.1,64864.0,64860.0,0.084924]
[1721396613944,0.07717479,64861.0,64860.0,0.006924]
[1721396614416,0.12717479,64861.0,64860.0,0.006924]
[1721396615074,0.1,64864.0,64860.0,0.006924]
[1721396615319,0.05,64861.0,64860.0,0.006924]
[1721396615532,0.20438174,64861.0,64860.0,0.006924]
[1721396615741,0.077,64863.0,64860.0,0.006924]
[1721396616370,0.1,64864.0,64860.0,0.000924]
[1721396616835,0.1,64864.0,64862.0,0.154172]
[1721396617047,0.109,64864.0,64860.0,0.310277]
[1721396617547,0.1,64864.0,64863.0,0.770855]
[1721396617826,0.1,64864.0,64863.0,1.49929718]
[1721396618306,0.1,64864.0,64863.0,1.65346818]
[1721396618546,0.1,64864.0,64863.0,1.37127874]
[1721396620213,0.101,64864.0,64863.0,1.37127874]
[1721396620770,0.1,64864.0,64863.0,1.37127874]
[1721396621301,0.101,64864.0,64863.0,1.37627874]
[1721396621827,0.1,64864.0,64863.0,1.37127874]
[1721396622047,0.1,64864.0,64863.0,1.80763012]
[1721396622714,0.1,64864.0,64863.0,1.37127874]
[1721396622969,0.1,64864.0,64863.0,1.49928978]
[1721396623207,0.1,64864.0,64863.0,1.83063178]
[1721396623474,1.0,64872.0,64871.0,1.079064]
[1721396623676,1.0,64872.0,64871.0,1.69276078]
[1721396623880,1.0,64872.0,64871.0,1.83826078]
[1721396624550,1.0,64872.0,64871.0,1.81526078]
[1721396624781,1.0,64872.0,64871.0,1.68724974]
[1721396624982,1.0,64872.0,64871.0,1.81524066]
[1721396626335,1.0,64872.0,64871.0,1.38394574]
[1721396626336,1.001,64872.0,64871.0,1.38394574]
[1721396626765,1.001,64872.0,64871.0,1.30384574]
[1721396627009,1.001,64872.0,64871.0,0.77576]
[1721396627216,1.001,64872.0,64871.0,0.159152]
[1721396627924,1.001,64872.0,64871.0,0.005]
[1721396627925,1.051,64872.0,64871.0,0.005]
[1721396628162,1.1272,64872.0,64871.0,0.005]
[1721396628445,1.0772,64872.0,64871.0,0.005]
[1721396628890,1.0772,64872.0,64871.0,0.159152]
[1721396629096,1.0772,64872.0,64871.0,0.005]
[1721396629578,1.0772,64872.0,64867.0,0.154161]
[1721396629579,1.0762,64872.0,64867.0,0.154161]
[1721396629785,1.0762,64872.0,64860.0,0.000924]
[1721396629786,0.07717479,64868.0,64860.0,0.000924]
[1721396629992,0.07717479,64868.0,64862.0,0.154172]
[1721396630392,0.05,64870.0,64862.0,0.154172]
[1721396630650,0.05,64870.0,64860.0,0.000924]
[1721396631162,0.15438174,64869.0,64860.0,0.000924]
[1721396631407,0.05,64868.0,64860.0,0.155101]
[1721396631638,0.05,64868.0,64860.0,0.000924]
[1721396632151,0.05,64862.0,64860.0,0.000924]
[1721396633597,0.34758174,64861.0,64860.0,0.000924]
[1721396634566,0.44758174,64861.0,64860.0,0.000924]
[1721396634798,0.91010774,64861.0,64860.0,0.000924]
[1721396635028,1.00883599,64861.0,64860.0,0.000924]
[1721396635271,1.00883599,64861.0,64860.0,0.002924]
[1721396635501,1.02501073,64861.0,64860.0,0.002924]
[1721396635753,1.29851073,64861.0,64860.0,0.002924]
[1721396636014,1.60686173,64861.0,64860.0,0.002924]
[1721396636249,1.6309895,64861.0,64860.0,0.002924]
[1721396636471,1.9393405,64861.0,64860.0,0.002924]
[1721396636682,1.6309895,64861.0,64860.0,0.002924]
[1721396636923,0.05,64841.0,64840.0,0.002794]
[1721396637179,0.05,64841.0,64827.0,0.30851]
[1721396637180,0.1894,64841.0,64827.0,0.30851]
[1721396637450,0.1894,64841.0,64832.0,0.154243]
[1721396637682,0.1894,64841.0,64824.0,0.308526]
[1721396637683,0.05,64837.0,64828.0,0.154254]
[1721396637917,0.1394,64841.0,64822.0,0.000913]
[1721396637918,0.15438174,64836.0,64822.0,0.000913]
[1721396638151,0.05,64832.0,64822.0,0.000913]
[1721396638424,0.20438174,64832.0,64822.0,0.000913]
[1721396638666,0.94061474,64832.0,64822.0,0.000913]
[1721396638933,1.92670151,64832.0,64822.0,0.000913]
[1721396639406,0.05,64823.0,64822.0,0.000913]
[1721396639619,1.69364374,64823.0,64822.0,0.000913]
[1721396639857,2.04714374,64823.0,64822.0,0.000913]
[1721396640085,1.129893,64821.0,64820.0,0.009174]
[1721396640322,1.129893,64821.0,64797.0,0.009163]
[1721396640323,0.340218,64801.0,64797.0,0.009163]
[1721396640554,0.49459974,64801.0,64797.0,0.009163]
[1721396640805,0.80323674,64801.0,64797.0,0.009163]
[1721396641051,0.34028174,64801.0,64797.0,0.009163]
[1721396641533,0.1422,64810.0,64798.0,0.308649]
[1721396641785,0.1422,64810.0,64797.0,0.009163]
[1721396641786,0.05,64801.0,64797.0,0.009163]
[1721396642022,0.20303217,64809.0,64797.0,0.009163]
[1721396642252,0.1,64806.0,64797.0,0.009163]
[1721396642492,0.231797,64810.0,64797.0,0.009163]
[1721396642493,0.0775,64810.0,64802.0,0.308628]
[1721396642740,0.20438174,64809.0,64797.0,0.009163]
[1721396642989,0.05,64803.0,64797.0,0.009163]
[1721396643234,0.05,64801.0,64797.0,0.009163]
[1721396643472,0.38685539,64801.0,64797.0,0.009163]
[1721396643713,1.07597374,64801.0,64797.0,0.009163]
[1721396643958,0.91393674,64801.0,64797.0,0.009163]
[1721396644179,0.72448174,64801.0,64797.0,0.009163]
[1721396644626,0.45098174,64801.0,64797.0,0.009163]
[1721396644836,0.87879974,64801.0,64797.0,0.009163]
[1721396645104,0.72448174,64801.0,64797.0,0.009163]
[1721396645324,0.87879974,64801.0,64797.0,0.009163]
[1721396645539,0.72448174,64801.0,64797.0,0.009163]
[1721396645762,0.87879974,64801.0,64797.0,0.009163]
[1721396645984,1.65042331,64801.0,64797.0,0.009163]
[1721396646193,1.18743674,64801.0,64797.0,0.009163]
[1721396647089,1.49607374,64801.0,64800.0,0.101]
[1721396647720,1.19843674,64801.0,64800.0,0.101]